fUSD/lending_fUSD_20250612
["ID","MTS","AMOUNT","RATE_DAILY","PERIOD"]
[365518540,1749737437829,-365.2694685,0.00016996,2]
[365518541,1749737437839,-300.0,0.00016999,2]
[365518542,1749737437848,-150.0,0.00016999,2]
[365518543,1749737437857,-150.0,0.00016999,2]
[365518544,1749737437867,-150.0,0.00016999,2]
[365518545,1749737437886,-500.0,0.00016999,2]
[365518546,1749737437898,-150.0,0.00016999,2]
[365518547,1749737437908,-150.0,0.00016999,2]
[365518548,1749737437917,-500.0,0.00016999,2]
[365518549,1749737437927,-152.64069519,0.00016999,2]
[365518550,1749737437937,-150.0,0.00016999,2]
[365518551,1749737437946,-204.02991496,0.00016999,2]
[365518552,1749737437962,-500.0,0.00016999,2]
[365518553,1749737437971,-1456.0,0.00016999,2]
[365518554,1749737437982,-150.0,0.00016999,2]
[365518555,1749737437991,-150.0,0.00016999,2]
[365518556,1749737438001,-500.0,0.00016999,2]
[365518557,1749737438010,-150.0,0.00016999,2]
[365518558,1749737438021,-150.0,0.00016999,2]
[365518559,1749737438031,-203.76,0.00016999,2]
[365518560,1749737438042,-150.0,0.00016999,2]
[365518561,1749737438052,-500.0,0.00016999,2]
[365518562,1749737438062,-500.0,0.00016999,2]
[365518563,1749737438072,-500.0,0.00016999,2]
[365518564,1749737438082,-500.0,0.00016999,2]
[365518565,1749737438092,-500.0,0.00016999,2]
[365518566,1749737438102,-500.0,0.00016999,2]
[365518567,1749737438112,-153.8936885,0.00016999,2]
[365518568,1749737438122,-150.0,0.00016999,2]
[365518569,1749737438132,-13505.27636033,0.00017,3]
[365518570,1749737438141,-174767.79061389,0.00017,3]
[365518572,1749737438164,-29409.38146671,0.00017,3]
[365518574,1749737438176,-5821.3597905,0.00017,3]
[365518576,1749737438188,-7550.9314605,0.00017,3]
[365518578,1749737438200,-5083.7384,0.00017,3]
[365518580,1749737438211,-3000.7722,0.00017,3]
[365518582,1749737438223,-4660.15,0.00017,3]
[365518585,1749737438234,-17390.1,0.00017,3]
[365518587,1749737438246,-19751.0985,0.00017,3]
[365518589,1749737438258,-4472.77938,0.00017,3]
[365518592,1749737438280,-148421.74681684,0.00017,3]
[365518594,1749737438290,-156845.58935107,0.00017,2]
[365518609,1749737438433,-845.43548347,0.00017,2]
[365518612,1749737438445,-42956.54804366,0.00017,2]
[365518640,1749737439642,-868.60352565,0.00017,2]
[365518641,1749737439908,-680.9481981,0.00017,2]
[365518642,1749737439940,-3510933.23915602,0.00017,2]
[365518643,1749737439951,-1742.09143174,0.00017,2]
[365518644,1749737439986,-54516.00000001,0.00017,2]
[365518649,1749737440334,-162.00081043,0.00017,2]
[365518693,1749737442532,-234.865,0.00016272,2]
[365518694,1749737442543,-2565.4915772,0.00017,2]
[365518698,1749737445274,-151.0,0.00016291,2]
[365518700,1749737445284,-1651.93664161,0.00017,2]
[365518702,1749737445388,-3685.0,0.00017,2]
[365518703,1749737445399,-544.5,0.00017,2]
[365518704,1749737445615,-2728.74660003,0.00017,2]
[365518736,1749737471587,307.0,0.00015252,2]
[365518737,1749737495735,700.0,0.00015078,2]
[365518738,1749737535690,2751.0,0.00015896,2]
[365518739,1749737604411,2705.84,0.00013953,2]
[365518740,1749737636854,150.0,0.0002,120]
[365518741,1749737715719,157.34,0.00024658,120]
[365518743,1749737743541,1000.0,0.00013699,2]
[365518744,1749737772840,198.76205219,0.00016,9]
[365518745,1749737775344,2485.21754815,0.0001,2]
[365518746,1749737803423,150.0,0.00015796,7]
[365518747,1749737894250,264.0,0.0001506,2]
[365518748,1749737894507,264.0,0.00015514,2]
[365518749,1749737894775,264.0,0.00015968,3]
[365518750,1749737980215,5000.0,0.00016,2]
[365518751,1749738006044,5000.0,0.00016,2]
[365518752,1749738025742,5000.0,0.00016,2]
[365518753,1749738042419,152.46,0.00015734,2]
[365518754,1749738042455,5000.0,0.00016,2]
[365518755,1749738051919,-200.0,0.00016073,2]
[365518756,1749738051945,-250.0,0.00016098,2]
[365518757,1749738051966,-151.0,0.00016121,2]
[365518758,1749738051989,-600.0,0.00016123,4]
[365518759,1749738052011,-151.0,0.00016128,2]
[365518760,1749738052034,-151.0,0.00016136,2]
[365518761,1749738052057,-151.0,0.0001615,2]
[365518762,1749738052080,-700.0,0.00016174,2]
[365518763,1749738052104,-2705.84,0.00016217,2]
[365518764,1749738052354,-900.0,0.000163,5]
[365518765,1749738052387,-600.0,0.00016314,4]
[365518766,1749738052410,-1200.0,0.00016399,2]
[365518767,1749738052433,-1900.0,0.000164,5]
[365518768,1749738052456,-264.0,0.00016422,3]
[365518769,1749738052479,-300.0,0.00016447,2]
[365518770,1749738052502,-700.0,0.00016448,2]
[365518771,1749738052529,-300.0,0.00016499,2]
[365518772,1749738052553,-2900.0,0.000165,6]
[365518773,1749738052576,-467.0,0.00016575,2]
[365518774,1749738052600,-12184.16,0.000166,2]
[365518775,1749738057123,5000.0,0.00016,2]
[365518776,1749738067689,5000.0,0.00016,2]
[365518777,1749738069809,290.02,0.00015979,2]
[365518778,1749738072013,202.00002,0.0001506,2]
[365518779,1749738073459,820.41,0.00015967,2]
[365518780,1749738080437,150.0,0.00015956,2]
[365518781,1749738086627,1000.0,0.00015956,2]
[365518782,1749738092514,1597.54,0.00015939,2]
[365518783,1749738094565,5000.0,0.00016,2]
[365518784,1749738107806,5000.0,0.00016,2]
[365518785,1749738116853,5000.0,0.00016,2]
[365518786,1749738126250,5000.0,0.00016,2]
[365518787,1749738135910,5000.0,0.00016,2]
[365518788,1749738170603,5000.0,0.00016,2]
[365518789,1749738181224,958.0,0.00016,2]
[365518790,1749738212753,600.0,0.00015078,2]
[365518791,1749738257821,200.0,0.00015866,2]
[365518792,1749738260522,253.0,0.00015876,2]
[365518793,1749738308786,327.4189035,0.00024658,120]
[365518794,1749738311433,612.36075837,0.000154,2]
[365518795,1749738315904,165.3840799,0.00024658,120]
[365518796,1749738326380,753.4743822,0.000108,2]
[365518797,1749738326477,23900.0,0.00015877,2]
[365518798,1749738333632,666.0,0.00015865,2]
[365518799,1749738337000,1666.85013503,9e-05,2]
[365518800,1749738352424,184.74,0.00012692,2]
[365518801,1749738356252,12552.52580577,6.94e-05,2]
[365518802,1749738363529,4813.67667905,8e-05,2]
[365518803,1749738432861,1257.12182294,0.00015,2]
[365518804,1749738436255,3156.1490807,0.00015,2]
[365518805,1749738480733,1123.19221891,0.00015,10]
[365518806,1749738492607,200.0,0.000158,2]
[365518807,1749738501667,503.37290142,0.00017,10]
[365518808,1749738503352,66969.46702184,0.0002,30]
[365518809,1749738503404,237617.81297816,0.0002,30]
[365518810,1749738506041,1878.27063235,0.0001,2]
[365518811,1749738507858,206.00720398,7.888e-05,2]
[365518812,1749738520766,260.88121782,0.000107,2]
[365518813,1749738524989,30803.72225061,0.00013368,2]
[365518824,1749738590771,2751.0,0.00015809,2]
[365518825,1749738607157,2497.58,0.00013849,2]
[365518827,1749738618161,251.0,0.00015321,2]
[365518828,1749738618391,251.0,0.00015773,2]
[365518833,1749738631929,-800.0,0.000161,5]
[365518834,1749738631938,-2497.58,0.00016113,2]
[365518835,1749738631948,-300.0,0.00016119,2]
[365518836,1749738631958,-300.0,0.00016137,2]
[365518837,1749738631968,-700.0,0.00016174,2]
[365518838,1749738631982,-1700.0,0.000162,5]
[365518839,1749738631994,-251.0,0.00016224,3]
[365518840,1749738632009,-166.66,0.0001627,2]
[365518841,1749738632020,-151.0,0.00016278,2]
[365518842,1749738632030,-151.0,0.00016293,2]
[365518844,1749738632040,-2600.0,0.000163,5]
[365518845,1749738632049,-1200.0,0.00016399,2]
[365518848,1749738632060,-3400.0,0.000164,5]
[365518850,1749738632071,-600.0,0.00016448,2]
[365518851,1749738632090,-500.0,0.00016499,2]
[365518852,1749738632104,-500.0,0.00016499,2]
[365518853,1749738632115,-251.12817441,0.00016499,2]
[365518854,1749738632127,-4300.0,0.000165,6]
[365518855,1749738632137,-1957.856,0.0001659,2]
[365518856,1749738632150,-207.4,0.0001659,2]
[365518858,1749738632162,-300.0,0.00016598,2]
[365518860,1749738632173,-550.0,0.00016599,2]
[365518862,1749738632184,-13142.79379716,0.000166,2]
[365518864,1749738632194,-800.0,0.000166,6]
[365518866,1749738632204,-961.90340895,0.00016645,2]
[365518868,1749738632217,-812.00028,0.0001666,2]
[365518870,1749738632231,-251.0,0.00016675,3]
[365518873,1749738632242,-800.0,0.000167,6]
[365518875,1749738632252,-152.46,0.00016717,2]
[365518877,1749738632263,-150.0,0.000168,2]
[365518879,1749738632275,-800.0,0.000168,6]
[365518881,1749738632286,-168.0,0.00016813,2]
[365518883,1749738632297,-2000.0,0.00016863,2]
[365518885,1749738632309,-806.265,0.00016863,2]
[365518887,1749738632320,-2000.0,0.00016863,2]
[365518889,1749738632330,-2000.0,0.00016864,2]
[365518891,1749738632340,-2000.0,0.00016864,2]
[365518893,1749738632349,-2000.0,0.00016864,2]
[365518895,1749738632359,-2000.0,0.00016864,2]
[365518897,1749738632368,-2000.0,0.00016864,2]
[365518899,1749738632378,-2000.0,0.00016864,2]
[365518901,1749738632388,-867.9924602,0.00016885,2]
[365518903,1749738632398,-379.2638,0.00016895,2]
[365518906,1749738632409,-500.0,0.000169,2]
[365518908,1749738632419,-2500.0,0.000169,2]
[365518910,1749738632429,-800.0,0.000169,6]
[365518912,1749738632438,-4562.21422783,0.000169,2]
[365518914,1749738632447,-183.1260132,0.000169,2]
[365518916,1749738632456,-5000.0,0.000169,2]
[365518918,1749738632465,-298.77669866,0.000169,2]
[365518919,1749738632475,-500.0,0.00016973,2]
[365518921,1749738632488,-500.0,0.00016973,2]
[365518923,1749738632498,-500.0,0.00016973,2]
[365518925,1749738632509,-500.0,0.00016973,2]
[365518927,1749738632521,-500.0,0.00016973,2]
[365518929,1749738632531,-500.0,0.00016973,2]
[365518931,1749738632542,-151.0,0.00016985,2]
[365518933,1749738632552,-150.57,0.00016986,2]
[365518935,1749738632562,-150.88,0.00016986,2]
[365518937,1749738632572,-168.0,0.00016988,2]
[365518939,1749738632582,-386.71454363,0.00016989,2]
[365518941,1749738632595,-61165.55557415,0.0001699,2]
[365518943,1749738632604,-693.2499941,0.00016996,2]
[365518945,1749738632614,-730.53893752,0.00016996,2]
[365518947,1749738632624,-8237.9181069,0.00016996,2]
[365518949,1749738632633,-23880.93226789,0.00016996,2]
[365518963,1749738632825,-0.12364578,0.00016996,2]
[365518964,1749738632837,-726.59242496,0.00016996,2]
[365518969,1749738632920,-336.66692717,0.00016996,2]
[365518971,1749738632930,-3117.129395,0.00016996,2]
[365518973,1749738632945,-3279.09610278,0.00016996,2]
[365518991,1749738633111,-975.92962597,0.00016996,2]
[365519244,1749738637587,-500.0,0.00016447,2]
[365519245,1749738637596,-500.0,0.00016447,2]
[365519246,1749738637605,-500.0,0.00016447,2]
[365519247,1749738637613,-476.17857411,0.00016447,2]
[365519248,1749738637622,-715.40642589,0.00016996,2]
[365519249,1749738638242,-435.43350987,0.00016996,2]
[365519250,1749738638254,-2362.66210487,0.00016996,2]
[365519377,1749738639858,-1667.879868,0.00016996,2]
[365519379,1749738639869,-2687.0,0.00016996,2]
[365519381,1749738639881,-665.97052575,0.00016996,2]
[365519384,1749738639893,-924.19288704,0.00016996,2]
[365519386,1749738639903,-2442.98794964,0.00016996,2]
[365519388,1749738639914,-15356.30779021,0.00016996,2]
[365519407,1749738640072,-126768.72243968,0.00016996,2]
[365519409,1749738640081,-300.0,0.00016999,2]
[365519411,1749738640090,-12732.94597727,0.00016999,2]
[365519412,1749738640099,-1093.68149428,0.00016999,5]
[365519414,1749738640110,-1093.68149431,0.00016999,5]
[365519416,1749738640119,-1093.68149428,0.00016999,5]
[365519418,1749738640129,-1093.68149428,0.00016999,5]
[365519421,1749738640138,-1093.68149428,0.00016999,5]
[365519423,1749738640148,-1093.68149428,0.00016999,5]
[365519425,1749738640157,-1093.68149428,0.00016999,5]
[365519427,1749738640167,-1093.68149428,0.00016999,5]
[365519429,1749738640176,-500.0,0.00016999,2]
[365519431,1749738640185,-500.0,0.00016999,2]
[365519433,1749738640194,-500.0,0.00016999,2]
[365519435,1749738640205,-150.0,0.00016999,2]
[365519437,1749738640215,-423.0,0.00016999,2]
[365519439,1749738640225,-150.0,0.00016999,2]
[365519441,1749738640234,-500.0,0.00016999,2]
[365519443,1749738640243,-150.0,0.00016999,2]
[365519445,1749738640253,-500.0,0.00016999,2]
[365519447,1749738640262,-814.0,0.00016999,2]
[365519449,1749738640271,-150.0,0.00016999,2]
[365519451,1749738640281,-150.0,0.00016999,2]
[365519453,1749738640290,-150.0,0.00016999,2]
[365519455,1749738640299,-150.0,0.00016999,2]
[365519457,1749738640308,-150.0,0.00016999,2]
[365519459,1749738640317,-500.0,0.00016999,2]
[365519461,1749738640326,-500.0,0.00016999,2]
[365519463,1749738640335,-500.0,0.00016999,2]
[365519465,1749738640343,-500.0,0.00016999,2]
[365519467,1749738640351,-500.0,0.00016999,2]
[365519469,1749738640360,-500.0,0.00016999,2]
[365519471,1749738640370,-500.0,0.00016999,2]
[365519472,1749738640379,-6752.63818017,0.00017,3]
[365519475,1749738640388,-262243.31628429,0.00017,3]
[365519476,1749738640398,-3403882.47888188,0.00017,2]
[365519479,1749738640410,-659.6249505,0.00017,2]
[365519609,1749738642852,-250.0,0.00016267,2]
[365519610,1749738642862,-151.0,0.00016297,2]
[365519611,1749738642871,-234.8413354,0.00017,2]
[365519612,1749738642882,-26909.66691171,0.00017,2]
[365519629,1749738645926,-2662.0,0.00017,2]
[365519630,1749738646313,-104661.43595248,0.00017,2]
[365519632,1749738750794,229.25,0.00024658,120]
[365519633,1749738761791,229.25,0.00024658,120]
[365519634,1749738771332,600.0,0.00015068,2]
[365519635,1749738772356,229.25,0.0002,30]
[365519636,1749738784043,229.25,0.0002,30]
[365519637,1749738821484,201.99998,0.00015321,2]
[365519638,1749738838369,168.0,0.0001556,2]
[365519639,1749738847920,168.0,0.00015754,2]
[365519640,1749738852364,1600.0,0.00015958,2]
[365519642,1749738925178,959.51,0.00013699,2]
[365519643,1749738978570,150.0,0.00015947,7]
[365519644,1749739005988,500.0,0.00016,2]
[365519645,1749739014076,500.0,0.00016,2]
[365519646,1749739021831,500.0,0.00016,2]
[365519647,1749739038004,500.0,0.00016,2]
[365519648,1749739045507,500.0,0.00016,2]
[365519649,1749739052834,500.0,0.00016,2]
[365519650,1749739064206,500.0,0.00016,2]
[365519651,1749739071148,500.0,0.00016,2]
[365519652,1749739075319,150.0,0.00015977,2]
[365519653,1749739079074,500.0,0.00016,2]
[365519654,1749739087914,500.0,0.00016,2]
[365519655,1749739097591,490.0,0.00024658,120]
[365519656,1749739097680,500.0,0.00016,2]
[365519657,1749739105407,500.0,0.00016,2]
[365519658,1749739114640,500.0,0.00016,2]
[365519659,1749739149549,77326.06634992,0.00016,2]
[365519660,1749739193683,50000.0,0.00016,2]
[365519661,1749739255260,156.12,0.00015923,2]
[365519662,1749739266889,605.19663265,0.00019726,30]
[365519664,1749739332186,241.0,0.00015127,2]
[365519665,1749739332384,241.0,0.0001558,2]
[365519667,1749739392024,798.77,0.00015882,2]
[365519668,1749739442716,2271.35,0.00015878,2]
[365519669,1749739474790,666.0,0.00015878,2]
[365519670,1749739518110,200.0,0.00015879,2]
[365519672,1749739612008,1000.0,0.00015871,2]
[365519673,1749739676883,250.0,0.00015899,2]
[365519674,1749739691611,236.0,0.00015033,2]
[365519675,1749739692216,236.0,0.00015487,2]
[365519676,1749739692436,236.0,0.00015942,3]
[365519679,1749739815738,2312.85,0.000139,2]
[365519680,1749739829213,23900.0,0.00015802,2]
[365519689,1749739831824,-162.64720164,0.00016144,2]
[365519690,1749739831834,-163.75279836,0.00016144,2]
[365519691,1749739831845,-86.24720164,0.00016144,2]
[365519692,1749739831854,-205.54183188,0.00016144,2]
[365519693,1749739831864,-94.45816812,0.00016144,2]
[365519694,1749739831873,-500.0,0.00016164,2]
[365519695,1749739831882,-600.0,0.00016164,2]
[365519696,1749739831890,-2312.85,0.00016164,2]
[365519697,1749739831899,-1200.0,0.00016298,2]
[365519698,1749739831908,-219.57539712,0.00016299,2]
[365519699,1749739831918,-300.0,0.00016299,2]
[365519700,1749739831927,-300.0,0.00016299,2]
[365519701,1749739831938,-44574.79230583,0.000163,2]
[365519702,1749739831947,-166.62,0.00016346,2]
[365519703,1749739831957,-168.0,0.00016378,2]
[365519704,1749739831967,-236.0,0.00016396,3]
[365519705,1749739831977,-600.0,0.00016438,2]
[365519706,1749739831986,-207.4,0.0001649,2]
[365519707,1749739831996,-270.70018054,0.00016499,2]
[365519708,1749739832007,-3115.21827487,0.000165,2]
[365519711,1749739832261,-530.89572595,0.000165,2]
[365519712,1749739832288,-1519.44241363,0.000165,2]
[365519713,1749739832300,-12010.81252638,0.000165,2]
[365519714,1749739832312,-32823.63105917,0.000165,2]
[365519715,1749739832322,-17000.0,0.000165,2]
[365519716,1749739832332,-168.0,0.00016701,2]
[365519718,1749739832341,-250.0,0.00016731,2]
[365519719,1749739832351,-645.012,0.00016789,2]
[365519721,1749739832360,-236.0,0.0001685,4]
[365519722,1749739832370,-867.9924602,0.0001686,2]
[365519723,1749739832379,-2000.0,0.00016864,2]
[365519724,1749739832389,-500.0,0.00016864,2]
[365519725,1749739832399,-380.74662309,0.00016873,2]
[365519726,1749739832411,-159.31908841,0.00016873,2]
[365519727,1749739832420,-1419.56498846,0.00016873,2]
[365519728,1749739832430,-1161.75592313,0.00016876,2]
[365519733,1749739832508,-257.8090653,0.00016876,2]
[365519735,1749739832518,-334.23931456,0.00016879,2]
[365519738,1749739832534,-1085.32567387,0.00016879,2]
[365519740,1749739832543,-179.0,0.00016881,2]
[365519743,1749739832552,-1419.56498843,0.00016882,2]
[365519745,1749739832561,-1419.56498843,0.00016885,2]
[365519747,1749739832571,-1419.56498843,0.00016888,2]
[365519749,1749739832581,-1419.56498843,0.00016891,2]
[365519751,1749739832591,-1419.56498843,0.00016894,2]
[365519753,1749739832601,-1419.56498843,0.00016897,2]
[365519755,1749739832610,-973.4904,0.000169,2]
[365519757,1749739832619,-2185.9296,0.000169,2]
[365519759,1749739832628,-277.40493379,0.000169,2]
[365519761,1749739832638,-1307.91215429,0.000169,2]
[365519763,1749739832647,-1419.56498843,0.000169,2]
[365519765,1749739832657,-215.99864186,0.000169,2]
[365519767,1749739832666,-168.21315284,0.000169,2]
[365519769,1749739832675,-702.27737539,0.000169,2]
[365519771,1749739832685,-151.0,0.0001694,2]
[365519773,1749739832694,-151.0,0.0001694,2]
[365519775,1749739832703,-4346.83199289,0.0001695,2]
[365520278,1749739837939,-219.48302284,0.000169,2]
[365520280,1749739837948,-107180.51697717,0.0001695,2]
[365520311,1749739838241,-7234.48007199,0.0001695,2]
[365520313,1749739838289,-905.26500005,0.0001695,2]
[365520486,1749739839937,-1105.045,0.0001695,2]
[365520507,1749739840062,-2771.13119999,0.0001695,2]
[365520510,1749739840074,-440.709,0.0001695,2]
[365520520,1749739840119,-21541.6169904,0.0001695,2]
[365520550,1749739840263,-4474.40376651,0.0001695,2]
[365520553,1749739840273,-500.0,0.00016973,2]
[365520556,1749739840283,-500.0,0.00016973,2]
[365520559,1749739840293,-500.0,0.00016973,2]
[365520562,1749739840302,-500.0,0.00016973,2]
[365520565,1749739840312,-500.0,0.00016973,2]
[365520568,1749739840322,-500.0,0.00016973,2]
[365520571,1749739840331,-500.0,0.00016973,2]
[365520574,1749739840341,-168.0,0.00016983,2]
[365520576,1749739840350,-151.0,0.00016995,2]
[365520578,1749739840360,-306.313151,0.00016996,2]
[365520580,1749739840369,-52571.1730866,0.00016996,2]
[365520582,1749739840378,-1727.394621,0.00016996,2]
[365520584,1749739840388,-1093.68149428,0.00016999,5]
[365520586,1749739840397,-1093.68149428,0.00016999,5]
[365520588,1749739840407,-1093.68149428,0.00016999,5]
[365520590,1749739840416,-1093.68149428,0.00016999,5]
[365520592,1749739840426,-1093.68149428,0.00016999,5]
[365520594,1749739840435,-1093.68149428,0.00016999,5]
[365520596,1749739840445,-300.0,0.00016999,2]
[365520598,1749739840454,-1093.68149431,0.00016999,5]
[365520600,1749739840463,-300.0,0.00016999,2]
[365520601,1749739840473,-195.27,0.00016999,2]
[365520603,1749739840482,-3000.0,0.00016999,2]
[365520605,1749739840491,-3000.0,0.00016999,2]
[365520607,1749739840501,-1093.68149428,0.00016999,5]
[365520609,1749739840512,-500.0,0.00016999,2]
[365520611,1749739840522,-500.0,0.00016999,2]
[365520613,1749739840531,-1457.0,0.00016999,5]
[365520615,1749739840540,-150.0,0.00016999,5]
[365520617,1749739840549,-500.0,0.00016999,5]
[365520619,1749739840558,-150.0,0.00016999,2]
[365520621,1749739840567,-150.0,0.00016999,5]
[365520656,1749739840770,-150.0,0.00016999,5]
[365520658,1749739840780,-150.0,0.00016999,5]
[365520660,1749739840791,-150.0,0.00016999,5]
[365520662,1749739840800,-12732.94597827,0.00016999,2]
[365520665,1749739840810,-500.0,0.00016999,5]
[365520667,1749739840820,-500.0,0.00016999,5]
[365520668,1749739840830,-150.0,0.00016999,2]
[365520669,1749739840839,-423.0,0.00016999,5]
[365520670,1749739840849,-6752.63818017,0.00017,3]
[365520671,1749739840859,-291260.70356165,0.00017,3]
[365520672,1749739840868,-161771.41072653,0.00017,2]
[365520673,1749739840878,-17392.01,0.00017,2]
[365520674,1749739840887,-1500.0,0.00017,2]
[365520675,1749739840896,-1500.0,0.00017,2]
[365520676,1749739840906,-1500.0,0.00017,2]
[365520677,1749739840915,-1500.0,0.00017,2]
[365520678,1749739840925,-1500.0,0.00017,2]
[365520679,1749739840934,-1500.0,0.00017,2]
[365520680,1749739840943,-1500.0,0.00017,2]
[365520681,1749739840953,-1500.0,0.00017,2]
[365520682,1749739840962,-828.81,0.00017,2]
[365520683,1749739840972,-1500.0,0.00017,2]
[365520684,1749739840981,-1500.0,0.00017,2]
[365520685,1749739840991,-150.0,0.00017,3]
[365520686,1749739841000,-200.0,0.00017,2]
[365520687,1749739841012,-150.0,0.00017,2]
[365520688,1749739841021,-1201254.18645379,0.00017,2]
[365520689,1749739841031,-2182270.64106115,0.00017,2]
[365520690,1749739841043,-24104.6103854,0.00017,2]
[365520691,1749739841054,-12236.39882538,0.00017,2]
[365520725,1749739843580,-396.51506931,0.00017,2]
[365520726,1749739843705,-632.59944389,0.00017,2]
[365520727,1749739843717,-5156.16129863,0.00017,2]
[365520728,1749739845726,-2228.2296,0.0001685,2]
[365520729,1749739845736,-7686.754022,0.00017,2]
[365520730,1749739845747,-5013.03281276,0.00017,2]
[365520731,1749739845759,-4343.09858,0.00017,2]
[365520732,1749739845801,-1503.61956088,0.00017,2]
[365520733,1749739845844,-892.6,0.00017,2]
[365520734,1749739845944,-16332.26703626,0.00017,2]
[365520735,1749739845956,-26799.92864803,0.00017,2]
[365520746,1749739859539,303.96343401,0.00024657,120]
[365520748,1749739902418,911.53,0.00013699,2]
[365520750,1749739951663,600.0,0.00015068,2]
[365520752,1749740323977,150.0,0.00015844,7]
[365520754,1749740412062,224.0,0.00015304,2]
[365520755,1749740412394,224.0,0.00015756,2]
[365520756,1749740443832,1917.0,0.00016,2]
[365520757,1749740504597,155.63,0.00015804,2]
[365520758,1749740533655,666.0,0.00015757,2]
[365520759,1749740583979,559.32,0.00015744,2]
[365520760,1749740631656,11167.0,0.0002,30]
[365520761,1749740653069,200.0,0.000155,2]
[365520763,1749740694695,563.87,0.00015757,2]
[365520764,1749740706068,1000.0,0.00015747,2]
[365520765,1749740771955,219.0,0.00015207,2]
[365520766,1749740772220,219.0,0.0001566,2]
[365520767,1749740789568,200.0,0.00015734,2]
[365520769,1749740882145,865.95,0.00013699,2]
[365520772,1749740933137,23900.0,0.00015756,2]
[365520781,1749741013907,2138.75,0.00013818,2]
[365520791,1749741031938,-310.665671,0.00016064,2]
[365520792,1749741031950,-274.1118893,0.00016064,2]
[365520793,1749741031962,-586.889,0.00016064,2]
[365520794,1749741031975,-13.3334397,0.00016064,2]
[365520795,1749741031985,-300.0,0.00016064,2]
[365520796,1749741031995,-250.0,0.00016064,2]
[365520797,1749741032004,-300.0,0.00016064,2]
[365520798,1749741032014,-150.0,0.00016064,2]
[365520799,1749741032024,-2208.87,0.00016079,2]
[365520800,1749741032034,-2138.75,0.00016082,2]
[365520801,1749741032044,-219.0,0.00016112,3]
[365520802,1749741032054,-300.0,0.00016147,2]
[365520803,1749741032064,-1200.0,0.00016147,2]
[365520804,1749741032074,-168.0,0.00016148,2]
[365520805,1749741032084,-300.0,0.00016148,2]
[365520806,1749741032095,-207.4,0.00016149,2]
[365520807,1749741032105,-1957.856,0.00016149,2]
[365520808,1749741032115,-500.0,0.00016164,2]
[365520809,1749741032125,-600.0,0.00016164,2]
[365520810,1749741032135,-500.0,0.00016164,2]
[365520811,1749741032146,-2064.5772102,0.00016204,2]
[365520812,1749741032156,-1011.84,0.00016287,2]
[365520813,1749741032166,-168.0,0.0001647,2]
[365520814,1749741032175,-168.0,0.00016527,2]
[365520815,1749741032186,-219.0,0.00016564,3]
[365520816,1749741032197,-16333.40479753,0.000166,2]
[365520817,1749741032209,-8666.59520247,0.000166,2]
[365520818,1749741032219,-150.0,0.00016685,2]
[365520819,1749741032231,-867.9924602,0.00016758,2]
[365520820,1749741032241,-6361.0,0.000168,2]
[365520821,1749741032251,-151.0,0.0001682,2]
[365520822,1749741032260,-151.0,0.0001682,2]